[Event "Titled Tuesday Blitz January 03 Early 2023"]
[White "Simonovic, Miroslav"]
[Black "Steenbekkers, Franck"]
[WhiteFideId "919152"]
[BlackFideId "1004220"]
[WhiteElo "2082"]
[BlackElo "2164"]
[Result "1/2-1/2"]
[Round "11"]
[TimeControl "180+2"]
[Date "2023.01.03"]
[WhiteClock "0:00:04"]
[BlackClock "0:00:06"]

1. d4 {[%clk 0:03:00]}  Nf6 {[%clk 0:02:56]} 2. Bg5 {[%clk 0:03:00]}  d5 {[%clk 0:02:55]} 3. Bxf6 {[%clk 0:03:00]}  gxf6 {[%clk 0:02:54]} 4. e3 {[%clk 0:03:01]}  c5 {[%clk 0:02:53]} 5. c4 {[%clk 0:03:00]}  e5 {[%clk 0:02:46]} 6. dxe5 {[%clk 0:02:57]}  d4 {[%clk 0:02:37]} 7. exf6 {[%clk 0:02:48]}  Qxf6 {[%clk 0:02:34]} 8. exd4 {[%clk 0:02:46]}  cxd4 {[%clk 0:02:33]} 9. Nf3 {[%clk 0:02:44]}  Bb4+ {[%clk 0:02:31]} 10. Nbd2 {[%clk 0:02:44]}  O-O {[%clk 0:02:30]} 11. Bd3 {[%clk 0:02:33]}  Re8+ {[%clk 0:02:27]} 12. Kf1 {[%clk 0:02:32]}  Bg4 {[%clk 0:02:24]} 13. Ne4 {[%clk 0:02:27]}  Qf4 {[%clk 0:02:15]} 14. h3 {[%clk 0:02:20]}  Bh5 {[%clk 0:02:05]} 15. g4 {[%clk 0:02:12]}  Bg6 {[%clk 0:02:04]} 16. Ng3 {[%clk 0:01:55]}  Re3 {[%clk 0:01:40]} 17. Bxg6 {[%clk 0:01:33]}  Rxf3 {[%clk 0:01:38]} 18. Bxh7+ {[%clk 0:01:06]}  Kxh7 {[%clk 0:01:19]} 19. Qe2 {[%clk 0:00:52]}  Qxg3 {[%clk 0:01:17]} 20. Rg1 {[%clk 0:00:19]}  Qxh3+ {[%clk 0:01:13]} 21. Rg2 {[%clk 0:00:20]}  Nc6 {[%clk 0:00:59]} 22. Qe4+ {[%clk 0:00:19]}  Kg8 {[%clk 0:00:55]} 23. Kg1 {[%clk 0:00:14]}  d3 {[%clk 0:00:45]} 24. Qd5 {[%clk 0:00:09]}  d2 {[%clk 0:00:41]} 25. Qg5+ {[%clk 0:00:09]}  Kf8 {[%clk 0:00:36]} 26. Rh2 {[%clk 0:00:09]}  Re8 {[%clk 0:00:18]} 27. Rxh3 {[%clk 0:00:05]}  Rxh3 {[%clk 0:00:14]} 28. Kg2 {[%clk 0:00:04]}  Re1 {[%clk 0:00:11]} 29. Kxh3 {[%clk 0:00:03]}  Rxa1 {[%clk 0:00:10]} 30. Qh6+ {[%clk 0:00:04]}  Ke8 {[%clk 0:00:08]} 31. Qe3+ {[%clk 0:00:04]}  Kf8 {[%clk 0:00:08]} 32. Qh6+ {[%clk 0:00:04]}  Ke8 {[%clk 0:00:06]} 33. Qe3+ {[%clk 0:00:04]}  Kf8 {[%clk 0:00:06]} 34. Qh6+ {[%clk 0:00:04]} 1/2-1/2